[Event "LEM Sachsen-Anhalt Masters 2024"]
[Site "Merseburg"]
[Date "2024.02.08"]
[Round "2.5"]
[White "Ahmed, Daniel"]
[Black "Noennig, Jakob"]
[Result "1-0"]
[ECO "D35"]
[WhiteElo "1994"]
[BlackElo "1789"]
[Annotator "RC"]
[PlyCount "115"]
[EventDate "2024.02.01"]
[EventType "swiss"]
[EventCountry "GER"]
[SourceTitle "playchess.com"]
[Source "ChessBase"]
[SourceQuality "1"]
[TimeControl "40/5400+30:1800+30"]

1. d4 {[%emt 0:00:07]} d5 {[%emt 0:00:07]} 2. c4 {[%emt 0:00:08]} e6 {[%emt 0:00:07]} 3. Nc3 {[%emt 0:00:14]} Nf6 {[%emt 0:00:15]} 4. cxd5 {[%emt 0:00:23]} exd5 {[%emt 0:00:17]} 5. Bg5 {[%emt 0:00:12]} Be7 {[%emt 0:00:52]} 6. e3 {[%emt 0:00:14]} O-O {[%emt 0:00:23]} 7. Bd3 {[%emt 0:00:08]} c6 {[%emt 0:00:24]} 8. Nf3 {[%emt 0:00:58]} Nbd7 {[%emt 0:04:56]} 9. O-O {[%emt 0:00:30]} Ne4 {[%emt 0:06:54]} 10. Bf4 {[%emt 0:00:23]} Ndf6 {[%emt 0:09:53]} 11. Qc2 {[%emt 0:01:43]} Nxc3 {[%emt 0:05:40]} 12. bxc3 {[%emt 0:01:01]} h6 {[%emt 0:05:17]} 13. h3 {[%emt 0:04:53]} Be6 {[%emt 0:02:44]} 14. a4 {[%emt 0:00:32]} b6 {[%emt 0:10:06]} 15. Ne5 {[%emt 0:03:09]} Qc8 {[%emt 0:02:37]} 16. c4 {[%emt 0:06:20]} c5 {[%emt 0:06:19]} 17. dxc5 {[%emt 0:00:50]} Qxc5 {[%emt 0:07:59]} 18. Rfc1 {[%emt 0:03:03]} Rfd8 {[%emt 0:07:08]} 19. Qb1 {[%emt 0:12:48]} dxc4 {[%emt 0:05:10]} 20. Bxc4 {[%emt 0:04:24]} Bxc4 {[%emt 0:05:32]} 21. Rxc4 {[%emt 0:01:06]} Qd5 {[%emt 0:02:18]} 22. Qb5 {[%emt 0:04:51]} Bc5 {[%emt 0:07:08]} 23. Rac1 {[%emt 0:04:21]} Rac8 {[%emt 0:04:49]} 24. Nf3 {[%emt 0:02:59]} Ne4 {[%emt 0:02:11]} 25. Qa6 {[%emt 0:01:36]} Ra8 {[%emt 0:01:53]} 26. Nd4 {[%emt 0:02:33]} Nd6 {[%emt 0:01:03]} 27. Bxd6 {[%emt 0:00:47]} Qxd6 {[%emt 0:00:55]} 28. Nb5 {[%emt 0:07:43]} Qe7 {[%emt 0:00:16]} 29. a5 {[%emt 0:01:25]} Kh7 {[%emt 0:01:06]} 30. Ra1 {[%emt 0:00:28]} Rd7 {[%emt 0:00:31]} 31. axb6 {[%emt 0:01:29]} Bxb6 {[%emt 0:00:01]} 32. Qa4 {[%emt 0:04:42]} Rad8 {[%emt 0:00:34]} 33. Nc3 {[%emt 0:01:56]} Qe5 {[%emt 0:00:48]} 34. Rc1 {[%emt 0:03:56]} Rd2 {[%emt 0:00:29]} 35. Ne4 {[%emt 0:00:55]} R2d3 {[%emt 0:00:38]} 36. g4 {[%emt 0:02:05]} Qd5 {[%emt 0:00:34]} 37. Rc8 {[%emt 0:03:33]} Rd7 {[%emt 0:00:33]} 38. Qb4 {[%emt 0:02:12]} Rd1+ {[%emt 0:00:25]} 39. Rxd1 {[%emt 0:01:06]} Qxd1+ {[%emt 0:00:01]} 40. Kg2 {[%emt 0:00:37]} Qd5 {[%emt 0:00:08]} 41. Re8 {[%emt 0:36:28]} f5 {[%emt 0:06:13]} 42. gxf5 {[%emt 0:00:00]} Qxf5 {[%emt 0:00:11]} 43. Qb1 {[%emt 0:00:00]} Rf7 {[%emt 0:11:22]} 44. h4 {[%emt 0:00:00]} Qf3+ {[%emt 0:12:26]} 45. Kg1 {[%emt 0:00:00]} Qg4+ {[%emt 0:00:25]} 46. Ng3+ {[%emt 0:00:00]} g6 {[%emt 0:00:22]} 47. h5 {[%emt 0:00:00]} Rg7 {[%emt 0:00:29]} 48. hxg6+ {[%emt 0:00:32]} Qxg6 {[%emt 0:00:35]} 49. Qxg6+ {[%emt 0:01:56]} Kxg6 {[%emt 0:00:23]} 50. Kg2 {[%emt 0:00:26]} Kg5 {[%emt 0:01:30]} 51. Re5+ {[%emt 0:01:35]} Kf6 {[%emt 0:01:12]} 52. f4 {[%emt 0:00:55]} Bc7 {[%emt 0:01:33]} 53. Rc5 {[%emt 0:00:07]} a5 {[%emt 0:00:37]} 54. Rc6+ {[%emt 0:01:38]} Ke7 {[%emt 0:00:39]} 55. Rxc7+ {[%emt 0:00:01]} Kf8 {[%emt 0:00:03]} 56. Rc8+ {[%emt 0:00:42]} Kf7 {[%emt 0:00:14]} 57. Ra8 {[%emt 0:00:17]} h5 {[%emt 0:00:56]} 58. Rxa5 {[%emt 0:00:25]} 1-0

[Event "LEM Sachsen-Anhalt Masters 2024"]
[Site "Merseburg"]
[Date "2024.02.08"]
[Round "2.6"]
[White "Schulz, Maximilian"]
[Black "Polzin, Gustav"]
[Result "0-1"]
[ECO "A34"]
[WhiteElo "1896"]
[BlackElo "1895"]
[Annotator "NA RC"]
[PlyCount "170"]
[EventDate "2024.02.01"]
[EventType "swiss"]
[EventCountry "GER"]
[SourceTitle "playchess.com"]
[Source "ChessBase"]
[SourceQuality "1"]
[TimeControl "40/5400+30:1800+30"]

1. c4 {[%emt 0:00:03]} Nf6 {[%emt 0:00:09]} 2. Nc3 {[%emt 0:00:11]} c5 {[%emt 0:00:26]} 3. g3 {[%emt 0:00:39]} d5 {[%emt 0:00:06]} 4. cxd5 {[%emt 0:00:07]} Nxd5 {[%emt 0:00:07]} 5. Bg2 {[%emt 0:00:07]} Nc7 {[%emt 0:00:06]} 6. Nf3 {[%emt 0:01:13]} Nc6 {[%emt 0:00:08]} 7. O-O {[%emt 0:00:25]} e5 {[%emt 0:00:12]} 8. d3 {[%emt 0:03:16]} Be7 {[%emt 0:00:47]} 9. a3 {[%emt 0:02:08] A34: Symmetrical English: 2 Nc3, lines with ...d5.} Be6 {[%emt 0:00:19]} 10. Bd2 {[%emt 0:01:40]} O-O {[%emt 0:00:27]} 11. Qc2 {[%emt 0:15:51]} Rc8 {[%emt 0:01:38]} 12. Na4 {[%emt 0:01:21]} b6 {[%emt 0:03:03]} 13. b4 {[%emt 0:08:15]} Nd4 {[%emt 0:01:44]} 14. Nxd4 {[%emt 0:01:15]} cxd4 {[%emt 0:00:55]} 15. Rfc1 {[%emt 0:04:23]} Nd5 {[%emt 0:04:16]} 16. Qd1 {[%emt 0:03:18]} h5 {[%emt 0:05:46]} 17. Rxc8 {[%emt 0:02:49]} Qxc8 {[%emt 0:01:04]} 18. Rc1 {[%emt 0:00:27]} Qd7 {[%emt 0:00:03]} 19. Nb2 {[%emt 0:04:22]} h4 {[%emt 0:05:02]} 20. Nc4 {[%emt 0:03:25]} f6 {[%emt 0:01:33]} 21. e4 {[%emt 0:05:28]} dxe3 {[%emt 0:02:43]} 22. Nxe3 {[%emt 0:07:54]} f5 $2 {[%emt 0:07:24]} (22... Rd8 $15 {stays ahead.}) 23. Nc4 {[%emt 0:07:01]} Bf6 {[%emt 0:05:26]} 24. Qe2 {[%emt 0:01:34]} f4 {[%emt 0:11:32]} 25. Nxe5 {[%emt 0:06:29]} Bxe5 {[%emt 0:02:33]} 26. Qxe5 {[%emt 0:00:05]} f3 {[%emt 0:03:23]} 27. Bf1 {[%emt 0:01:24]} Rf5 {[%emt 0:05:38]} (27... Bh3 $1 $11) 28. Qe4 {[%emt 0:02:51]} hxg3 {[%emt 0:00:47]} 29. hxg3 {[%emt 0:01:09]} Nf6 {[%emt 0:02:07]} 30. Qc6 {[%emt 0:04:45]} Rd5 {[%emt 0:11:26]} 31. Qxd7 {[%emt 0:01:01]} Bxd7 {[%emt 0:01:42]} 32. Be3 {[%emt 0:01:01]} Rh5 {[%emt 0:05:02]} 33. d4 {[%emt 0:02:06]} Kf8 {[%emt 0:07:01]} 34. Rc7 {[%emt 0:01:00]} a6 {[%emt 0:01:42]} 35. Rb7 {[%emt 0:01:48]} Bb5 {[%emt 0:04:09]} 36. Bxb5 {[%emt 0:01:31]} Rxb5 {[%emt 0:00:27]} 37. Bd2 {[%emt 0:03:47]} Ne4 {[%emt 0:00:58]} 38. a4 {[%emt 0:00:29]} Rh5 {[%emt 0:00:51]} 39. Be1 {[%emt 0:01:04]} Ng5 {[%emt 0:01:13]} 40. Bc3 {[%emt 0:01:56]} Nh3+ {[%emt 0:05:46]} 41. Kf1 {[%emt 0:30:36]} Nf4 {[%emt 0:05:34]} 42. Ke1 {[%emt 0:00:00]} Nd3+ {[%emt 0:01:29]} 43. Kd2 {[%emt 0:00:00]} Nxf2 {[%emt 0:00:16]} 44. Ke3 {[%emt 0:00:00]} Nd1+ {[%emt 0:00:14]} 45. Kxf3 {[%emt 0:00:00]} Nxc3 {[%emt 0:00:09]} 46. Rxb6 {[%emt 0:00:00]} a5 {[%emt 0:00:59]} 47. bxa5 {[%emt 0:00:00]} Rxa5 {[%emt 0:00:30]} 48. Rc6 {[%emt 0:00:00]} Nxa4 {[%emt 0:00:28]} 49. Ke4 {[%emt 0:00:00]} Rb5 {[%emt 0:01:44]} 50. Rc7 {[%emt 0:00:00]} Rb3 {[%emt 0:04:25]} 51. g4 {[%emt 0:00:00]} Rc3 {[%emt 0:00:08]} 52. Rb7 {[%emt 0:00:00]} Rc8 {[%emt 0:00:47]} 53. Ke5 {[%emt 0:00:00]} Re8+ {[%emt 0:01:05]} 54. Kf5 {[%emt 0:00:00]} Nc3 {[%emt 0:00:38]} 55. Rc7 {[%emt 0:00:00]} Nd5 {[%emt 0:01:18]} 56. Rb7 {[%emt 0:00:00]} Re7 {[%emt 0:00:59]} 57. Rb5 {[%emt 0:00:00]} Nc7 {[%emt 0:00:44]} 58. Rb6 {[%emt 0:00:00]} Rd7 {[%emt 0:02:18]} 59. Ke5 {[%emt 0:00:00]} Ke7 {[%emt 0:01:20]} 60. Rg6 {[%emt 0:00:00]} Kf7 {[%emt 0:00:48]} 61. Rc6 {[%emt 0:00:00]} Ne8 {[%emt 0:01:17]} 62. g5 {[%emt 0:00:00]} Nc7 {[%emt 0:01:05]} 63. Rc4 {[%emt 0:00:00]} Kg6 {[%emt 0:02:28]} 64. Kf4 $2 {[%emt 0:00:00]} (64. Rc2 $19) 64... Ne6+ {[%emt 0:01:32]} 65. Ke5 {[%emt 0:00:00]} Nxg5 {[%emt 0:00:19]} 66. d5 {[%emt 0:00:00]} Nf7+ {[%emt 0:00:59]} 67. Kd4 {[%emt 0:00:00]} Kf6 {[%emt 0:00:57]} 68. Rc6+ {[%emt 0:00:00]} Rd6 {[%emt 0:00:55]} 69. Rc7 {[%emt 0:00:00]} Ne5 {[%emt 0:01:06]} 70. Ke4 {[%emt 0:00:04]} Nd7 {[%emt 0:00:48]} 71. Rc8 {[%emt 0:02:42]} g6 {[%emt 0:00:58]} 72. Rc7 {[%emt 0:00:48]} g5 {[%emt 0:00:21]} 73. Rc8 {[%emt 0:00:41]} Kf7 {[%emt 0:01:01]} 74. Rc7 {[%emt 0:02:35]} Kg6 {[%emt 0:00:15]} 75. Rc8 {[%emt 0:01:39]} Nf6+ {[%emt 0:00:06]} 76. Kf3 {[%emt 0:00:18]} Rxd5 {[%emt 0:00:04]} 77. Rf8 {[%emt 0:00:17]} Rf5+ {[%emt 0:00:20]} 78. Kg2 {[%emt 0:00:12]} g4 {[%emt 0:00:20]} 79. Ra8 {[%emt 0:00:15]} Kg5 {[%emt 0:00:15]} 80. Ra7 {[%emt 0:00:31]} Kf4 {[%emt 0:00:08]} 81. Ra4+ {[%emt 0:00:06]} Ne4 {[%emt 0:00:08]} 82. Rb4 {[%emt 0:00:05]} Rd5 {[%emt 0:00:07]} 83. Ra4 {[%emt 0:00:10]} g3 {[%emt 0:00:11]} 84. Rb4 {[%emt 0:00:06]} Rd2+ {[%emt 0:00:05]} 85. Kg1 {[%emt 0:00:20]} Re2 {[%emt 0:00:25]} 0-1

[Event "LEM Sachsen-Anhalt Masters 2024"]
[Site "Merseburg"]
[Date "2024.02.08"]
[Round "2.7"]
[White "Schellmann, Frank"]
[Black "Daub, Sebastian"]
[Result "1/2-1/2"]
[ECO "B27"]
[WhiteElo "1923"]
[BlackElo "1967"]
[Annotator "NA RC"]
[PlyCount "61"]
[EventDate "2024.02.01"]
[EventType "swiss"]
[EventCountry "GER"]
[SourceTitle "playchess.com"]
[Source "ChessBase"]
[SourceQuality "1"]
[TimeControl "40/5400+30:1800+30"]

1. e4 {[%emt 1:31:00]} c5 {[%emt 1:31:00]} 2. Nf3 {[%emt 0:00:30]} g6 3. c3 {[%emt 0:00:30]} Bg7 {[%emt 0:01:00]} 4. d4 {[%emt 0:00:30]} cxd4 {[%emt 0:00:30]} 5. cxd4 {[%emt 0:00:30]} d5 {[%emt 0:00:30]} 6. e5 {[%emt 0:00:30]} Bg4 {[%emt 0:00:30]} 7. Bb5+ {[%emt 0:00:30] B27: Sicilian: 2 Nf3, unusual Black 2nd moves.} Nc6 {[%emt 0:00:30]} 8. Nbd2 {[%emt 0:00:30]} e6 {[%emt 0:00:30]} 9. Bxc6+ {[%emt 0:00:30]} bxc6 {[%emt 0:00:30]} 10. O-O {[%emt 0:00:30]} Ne7 {[%emt 0:00:30]} 11. h3 {[%emt 0:00:30]} Bxf3 {[%emt 0:00:30]} 12. Nxf3 {[%emt 0:00:30]} Qb6 {[%emt 0:00:30]} 13. b3 {[%emt 0:00:30]} c5 {[%emt 0:00:30]} 14. dxc5 {[%emt 0:00:30]} Qxc5 {[%emt 0:00:30]} 15. Be3 {[%emt 0:00:30]} Qc7 {[%emt 0:00:30]} 16. Qd2 {[%emt 0:00:30]} O-O {[%emt 0:00:30]} 17. Rac1 {[%emt 0:00:30]} Qb7 {[%emt 0:00:30]} 18. Bh6 {[%emt 0:00:30]} Rac8 {[%emt 0:00:30]} 19. Bxg7 {[%emt 0:00:30]} Kxg7 {[%emt 0:00:30]} 20. Qf4 {[%emt 0:00:30]} Ng8 {[%emt 0:00:30]} 21. Nd4 {[%emt 0:00:30]} a6 {[%emt 0:00:30]} 22. Qd2 {[%emt 0:00:30]} Rxc1 {[%emt 0:00:30]} 23. Rxc1 {[%emt 0:00:30]} Rc8 {[%emt 0:00:30]} 24. f4 $11 {[%emt 0:00:30]} Rxc1+ {[%emt 0:00:30]} 25. Qxc1 {[%emt 0:00:30]} Qb6 {[%emt 0:00:30]} 26. Qe3 {[%emt 0:00:30]} Qc7 {[%emt 0:00:30]} 27. Kf2 {[%emt 0:00:30]} Ne7 {[%emt 0:00:30]} 28. g4 {[%emt 0:00:30]} Nc6 {[%emt 0:00:30]} 29. Nf3 {[%emt 0:00:30]} Qa7 {[%emt 0:00:30]} 30. Qxa7 Nxa7 31. Nd4 1/2-1/2

[Event "LEM Sachsen-Anhalt Masters 2024"]
[Site "Merseburg"]
[Date "2024.02.09"]
[Round "3.1"]
[White "Groebel, Aaron"]
[Black "Haubold, Christian"]
[Result "1-0"]
[ECO "C54"]
[WhiteElo "2087"]
[BlackElo "1990"]
[Annotator "NA RC"]
[PlyCount "87"]
[EventDate "2024.02.01"]
[EventType "swiss"]
[EventCountry "GER"]
[SourceTitle "playchess.com"]
[Source "ChessBase"]
[SourceQuality "1"]
[TimeControl "40/5400+30:1800+30"]

1. e4 {[%emt 0:00:03]} e5 {[%emt 0:00:06]} 2. Nf3 {[%emt 0:00:17]} Nc6 {[%emt 0:00:08]} 3. Bc4 {[%emt 0:00:47]} Nf6 {[%emt 0:00:22]} 4. d3 {[%emt 0:00:14]} Bc5 {[%emt 0:00:15]} 5. Bg5 {[%emt 0:00:51]} d6 {[%emt 0:06:38]} 6. c3 {[%emt 0:03:15]} h6 {[%emt 0:00:45]} 7. Bh4 {[%emt 0:00:09]} a6 {[%emt 0:02:23]} 8. a4 {[%emt 0:03:04]} Ba7 {[%emt 0:07:11]} 9. Nbd2 {[%emt 0:03:18]} Qe7 {[%emt 0:07:58]} 10. b4 {[%emt 0:01:16]} g5 {[%emt 0:04:18]} 11. Bg3 $1 {[%emt 0:00:08]} Rg8 {[%emt 0:04:25]} 12. Qb3 {[%emt 0:06:19]} Nh5 {[%emt 0:07:25]} 13. b5 {[%emt 0:16:25]} Na5 {[%emt 0:07:12]} 14. Qb4 {[%emt 0:01:30]} (14. Qb1 $15) 14... Bc5 {[%emt 0:10:25]} 15. Qb1 $17 {[%emt 0:01:19]} Nxc4 {[%emt 0:01:44]} 16. Nxc4 {[%emt 0:00:13]} g4 {[%emt 0:04:02]} 17. Nfd2 {[%emt 0:12:55]} Qf6 {[%emt 0:05:16]} 18. Rf1 {[%emt 0:04:40]} b6 {[%emt 0:09:08]} 19. Nb3 {[%emt 0:07:31]} Nf4 {[%emt 0:04:22]} 20. Bxf4 {[%emt 0:02:04]} Qxf4 {[%emt 0:00:13]} 21. g3 {[%emt 0:09:01]} Qg5 {[%emt 0:01:46]} 22. Nxc5 {[%emt 0:00:10]} dxc5 {[%emt 0:00:50]} 23. a5 {[%emt 0:08:37]} axb5 {[%emt 0:02:13]} 24. Qxb5+ {[%emt 0:00:03]} Bd7 {[%emt 0:01:02]} 25. Qb2 {[%emt 0:00:01]} Be6 {[%emt 0:05:39]} 26. Ne3 {[%emt 0:02:52]} Ke7 {[%emt 0:01:13]} 27. Ke2 {[%emt 0:04:30]} Qf6 {[%emt 0:03:32]} 28. f4 {[%emt 0:02:42]} gxf3+ {[%emt 0:00:57]} 29. Rxf3 {[%emt 0:00:01]} Qg6 {[%emt 0:01:12]} 30. c4 {[%emt 0:02:58]} f6 {[%emt 0:01:09]} 31. a6 {[%emt 0:01:46]} Qh5 {[%emt 0:00:14]} 32. Qb5 {[%emt 0:03:31]} Qxh2+ {[%emt 0:00:29]} 33. Rf2 {[%emt 0:00:01]} Qh5+ {[%emt 0:00:24]} 34. Kd2 {[%emt 0:00:09]} Qe8 {[%emt 0:00:37]} 35. Rh1 {[%emt 0:01:35]} Rg6 {[%emt 0:00:48]} 36. Rfh2 {[%emt 0:00:17]} Qxb5 {[%emt 0:00:50]} 37. cxb5 {[%emt 0:00:01]} Rxg3 {[%emt 0:00:16]} 38. Rxh6 {[%emt 0:00:30]} Rg7 {[%emt 0:00:13]} 39. Rh8 {[%emt 0:01:18]} Ra7 {[%emt 0:01:06]} 40. Rb8 {[%emt 0:01:02]} Kd6 {[%emt 0:00:58]} 41. Rh6 {[%emt 0:07:49]} Ke7 {[%emt 0:07:11]} 42. Rhh8 {[%emt 0:02:52]} c6 {[%emt 0:07:02]} 43. Rb7+ {[%emt 0:02:27]} Kd6 {[%emt 0:00:11]} 44. Rxb6 {[%emt 0:00:11]} 1-0

[Event "LEM Sachsen-Anhalt Masters 2024"]
[Site "Merseburg"]
[Date "2024.02.09"]
[Round "3.2"]
[White "Herter, Arne"]
[Black "Ahmed, Daniel"]
[Result "0-1"]
[ECO "B01"]
[WhiteElo "2028"]
[BlackElo "1994"]
[Annotator "NA RC"]
[PlyCount "76"]
[EventDate "2024.02.01"]
[EventType "swiss"]
[EventCountry "GER"]
[SourceTitle "playchess.com"]
[Source "ChessBase"]
[SourceQuality "1"]
[TimeControl "40/5400+30:1800+30"]

1. e4 {[%emt 0:00:02]} d5 {[%emt 0:00:16]} 2. exd5 {[%emt 0:00:08]} Qxd5 {[%emt 0:00:10]} 3. Nc3 {[%emt 0:00:08]} Qd8 {[%emt 0:00:15]} 4. d4 {[%emt 0:00:09]} Nf6 {[%emt 0:00:05]} 5. Nf3 {[%emt 0:00:09]} g6 {[%emt 0:00:12]} 6. Bc4 {[%emt 0:02:19] B01: Scandinavian Defence.} Bg7 {[%emt 0:00:20]} 7. O-O {[%emt 0:02:50]} O-O {[%emt 0:00:09]} 8. h3 {[%emt 0:01:09]} a6 {[%emt 0:00:25]} 9. a4 {[%emt 0:03:31]} b6 {[%emt 0:00:09]} 10. Re1 {[%emt 0:04:29]} Nc6 {[%emt 0:00:54]} 11. Bg5 {[%emt 0:03:02]} Bb7 {[%emt 0:00:48]} 12. Ba2 {[%emt 0:06:37]} Qd7 {[%emt 0:05:01]} (12... Qd6 $11 {was preferrable.}) 13. Qe2 {[%emt 0:07:14]} (13. Qd2 $142) 13... Rae8 {[%emt 0:08:37]} 14. Rad1 {[%emt 0:03:15]} Qc8 {[%emt 0:04:48]} 15. Qd2 {[%emt 0:06:20]} Nb4 {[%emt 0:00:50]} 16. Ne5 {[%emt 0:01:44]} Nxa2 {[%emt 0:01:16]} 17. Nxa2 {[%emt 0:00:05]} Ne4 {[%emt 0:01:03]} 18. Rxe4 {[%emt 0:16:22]} Bxe4 {[%emt 0:00:15]} 19. Nc3 {[%emt 0:00:13]} Bb7 {[%emt 0:03:48]} 20. Bh6 {[%emt 0:03:25]} Rd8 {[%emt 0:01:18]} 21. Bxg7 {[%emt 0:01:16]} Kxg7 {[%emt 0:00:36]} 22. Ng4 $19 {[%emt 0:02:38]} Rd6 {[%emt 0:05:51]} 23. Qh6+ {[%emt 0:03:38]} Kg8 {[%emt 0:00:29]} 24. d5 {[%emt 0:03:48]} Qf5 {[%emt 0:03:02]} 25. Qh4 {[%emt 0:07:28]} Kg7 {[%emt 0:10:25]} 26. Qxe7 {[%emt 0:11:44]} Rd7 {[%emt 0:02:53]} 27. Qe3 {[%emt 0:00:56]} h5 {[%emt 0:08:30]} 28. Qh6+ {[%emt 0:02:31]} Kg8 {[%emt 0:00:03]} 29. Ne3 {[%emt 0:01:52]} Qe5 {[%emt 0:04:52]} 30. Nc4 {[%emt 0:01:40]} Qg7 {[%emt 0:00:28]} 31. Qf4 {[%emt 0:05:18]} Rfd8 {[%emt 0:02:19]} 32. Ne3 {[%emt 0:00:00]} f5 {[%emt 0:02:34]} 33. Rd3 {[%emt 0:00:00]} Rf8 {[%emt 0:01:57]} 34. Ne2 {[%emt 0:00:21]} g5 {[%emt 0:01:51]} 35. Qf3 {[%emt 0:00:58]} f4 {[%emt 0:00:31]} 36. Nc4 {[%emt 0:00:39]} g4 {[%emt 0:00:44]} 37. hxg4 {[%emt 0:00:02]} hxg4 {[%emt 0:00:18]} 38. Qe4 {[%emt 0:00:32]} Re7 {[%emt 0:00:16]} 0-1

[Event "LEM Sachsen-Anhalt Masters 2024"]
[Site "Merseburg"]
[Date "2024.02.09"]
[Round "3.3"]
[White "Malek, Daniel"]
[Black "Wenzel, Thomas"]
[Result "1-0"]
[ECO "A50"]
[WhiteElo "2307"]
[BlackElo "1747"]
[Annotator "RC"]
[PlyCount "109"]
[EventDate "2024.02.01"]
[EventType "swiss"]
[EventCountry "GER"]
[SourceTitle "playchess.com"]
[Source "ChessBase"]
[SourceQuality "1"]
[TimeControl "40/5400+30:1800+30"]

1. c4 {[%emt 0:00:02]} b6 {[%emt 0:00:56]} 2. d4 {[%emt 0:00:30]} Bb7 {[%emt 0:00:33]} 3. Nc3 {[%emt 0:00:06]} Nf6 {[%emt 0:01:21]} 4. d5 {[%emt 0:01:24]} d6 {[%emt 0:04:22]} 5. e4 {[%emt 0:00:17]} e5 {[%emt 0:04:21]} 6. Nf3 {[%emt 0:00:20]} Nbd7 {[%emt 0:02:32]} 7. Bd3 {[%emt 0:03:19]} Nc5 {[%emt 0:01:58]} 8. Bc2 {[%emt 0:05:17]} a5 {[%emt 0:00:39]} 9. Rb1 {[%emt 0:01:26]} Be7 {[%emt 0:04:07]} 10. a3 {[%emt 0:00:15]} O-O {[%emt 0:00:56]} 11. b4 {[%emt 0:00:18]} axb4 {[%emt 0:00:14]} 12. axb4 {[%emt 0:00:05]} Ncd7 {[%emt 0:00:55]} 13. O-O {[%emt 0:01:37]} Qb8 {[%emt 0:06:00]} 14. Re1 {[%emt 0:04:56]} Rc8 {[%emt 0:03:59]} 15. Ba4 {[%emt 0:13:50]} c6 {[%emt 0:11:31]} 16. Bb2 {[%emt 0:07:11]} c5 {[%emt 0:04:40]} 17. Bc1 {[%emt 0:08:41]} Ba6 {[%emt 0:12:14]} 18. Bc6 {[%emt 0:02:33]} Bb7 {[%emt 0:00:36]} 19. b5 {[%emt 0:00:28]} Qc7 {[%emt 0:01:35]} 20. Bg5 {[%emt 0:03:15]} Ra3 {[%emt 0:01:32]} 21. Qc2 {[%emt 0:01:58]} Rca8 {[%emt 0:01:19]} 22. Nh4 {[%emt 0:12:23]} R8a7 {[%emt 0:05:34]} 23. Nf5 {[%emt 0:00:33]} Bf8 {[%emt 0:03:48]} 24. f4 {[%emt 0:05:35]} Bc8 {[%emt 0:02:54]} 25. Rbd1 {[%emt 0:06:41]} exf4 {[%emt 0:09:38]} 26. Bxd7 {[%emt 0:03:46]} Nxd7 {[%emt 0:03:33]} 27. Bxf4 {[%emt 0:00:07]} f6 {[%emt 0:01:30]} 28. Qb2 {[%emt 0:02:04]} Ne5 {[%emt 0:00:52]} 29. Bxe5 {[%emt 0:00:06]} fxe5 {[%emt 0:00:43]} 30. Ra1 {[%emt 0:03:16]} Rxa1 {[%emt 0:00:42]} 31. Rxa1 {[%emt 0:00:06]} g6 {[%emt 0:00:41]} 32. Nh4 {[%emt 0:01:53]} Bh6 {[%emt 0:01:10]} 33. Kf2 {[%emt 0:00:51]} Bg4 {[%emt 0:02:37]} 34. Ra6 {[%emt 0:01:44]} Bc8 {[%emt 0:01:49]} 35. Ra2 {[%emt 0:01:42]} Qf7+ {[%emt 0:01:58]} 36. Nf3 {[%emt 0:00:11]} g5 {[%emt 0:01:23]} 37. Rxa7 {[%emt 0:02:11]} Qxa7 {[%emt 0:00:09]} 38. Qa2 {[%emt 0:01:08]} Qf7 {[%emt 0:01:54]} 39. h3 {[%emt 0:00:52]} g4 {[%emt 0:00:53]} 40. Qa8 {[%emt 0:00:23]} g3+ {[%emt 0:00:57]} 41. Ke1 {[%emt 0:33:00]} Qf8 {[%emt 0:02:21]} 42. Qb8 {[%emt 0:00:00]} Kg7 {[%emt 0:05:23]} 43. Ne2 {[%emt 0:00:00]} Bf4 {[%emt 0:05:22]} 44. Qxb6 {[%emt 0:00:00]} Be3 {[%emt 0:05:44]} 45. Qb8 {[%emt 0:00:00]} Bf2+ {[%emt 0:01:02]} 46. Kd1 {[%emt 0:00:00]} Qd8 {[%emt 0:03:30]} 47. b6 {[%emt 0:00:00]} Qd7 {[%emt 0:02:22]} 48. Nc3 {[%emt 0:00:00]} Ba6 {[%emt 0:02:10]} 49. Qa7 {[%emt 0:00:00]} Bb7 {[%emt 0:00:31]} 50. Nb5 {[%emt 0:00:00]} Kg8 {[%emt 0:01:59]} 51. Qb8+ {[%emt 0:00:00]} Bc8 {[%emt 0:01:56]} 52. Qxd6 {[%emt 0:00:00]} Qb7 {[%emt 0:00:44]} 53. Qd8+ {[%emt 0:00:00]} Kg7 {[%emt 0:00:55]} 54. Nd6 {[%emt 0:00:00]} Qa6 {[%emt 0:01:21]} 55. Qe7+ {[%emt 0:11:40]} 1-0

[Event "LEM Sachsen-Anhalt Masters 2024"]
[Site "Merseburg"]
[Date "2024.02.09"]
[Round "3.4"]
[White "Haubold, Sebastian"]
[Black "Reipsch, Jens"]
[Result "1-0"]
[ECO "C75"]
[WhiteElo "2055"]
[BlackElo "2225"]
[Annotator "NA RC"]
[PlyCount "71"]
[EventDate "2024.02.01"]
[EventType "swiss"]
[EventCountry "GER"]
[SourceTitle "playchess.com"]
[Source "ChessBase"]
[SourceQuality "1"]
[TimeControl "40/5400+30:1800+30"]

1. e4 {[%emt 0:00:03]} e5 {[%emt 0:00:09]} 2. Nf3 {[%emt 0:00:16]} Nc6 {[%emt 0:00:02]} 3. Bb5 {[%emt 0:00:14]} a6 {[%emt 0:00:03]} 4. Ba4 {[%emt 0:00:19]} Nge7 {[%emt 0:00:11]} 5. O-O {[%emt 0:06:36]} d6 {[%emt 0:00:12]} 6. c3 {[%emt 0:01:29]} Bd7 {[%emt 0:00:24]} 7. d4 {[%emt 0:01:35]} Ng6 {[%emt 0:00:58]} 8. Re1 {[%emt 0:09:19]} Be7 {[%emt 0:00:26] C75: Ruy Lopez: Deferred Steinitz: 5 c3 Bd7 6 d4 without ...g6.} 9. Nbd2 {[%emt 0:01:29]} b5 {[%emt 0:01:51]} 10. Bc2 {[%emt 0:04:28]} Bg4 {[%emt 0:03:53]} ({Better is} 10... exd4 $14 11. cxd4 O-O) 11. h3 {[%emt 0:03:50]} Bc8 {[%emt 0:01:17]} 12. Nf1 {[%emt 0:02:12]} h6 {[%emt 0:01:10]} 13. a4 {[%emt 0:00:22]} Bb7 {[%emt 0:09:46]} 14. Ng3 {[%emt 0:03:31]} Bg5 {[%emt 0:03:20]} 15. d5 {[%emt 0:08:02]} Nb8 {[%emt 0:08:10]} 16. Bxg5 {[%emt 0:07:58]} hxg5 {[%emt 0:00:58]} 17. axb5 {[%emt 0:00:10]} Nf4 {[%emt 0:06:35]} 18. bxa6 {[%emt 0:03:32]} Rxa6 {[%emt 0:02:14]} 19. Ba4+ $16 {[%emt 0:10:45]} Kf8 {[%emt 0:02:38]} 20. Bb5 {[%emt 0:00:37]} Rb6 {[%emt 0:01:46]} 21. c4 {[%emt 0:02:26]} Bc8 {[%emt 0:01:35]} 22. Nh2 {[%emt 0:21:41]} g4 {[%emt 0:12:00]} 23. hxg4 {[%emt 0:03:03]} Rxh2 {[%emt 0:12:51]} 24. Kxh2 {[%emt 0:01:20]} Qh4+ {[%emt 0:00:05]} 25. Kg1 {[%emt 0:00:08]} Bxg4 {[%emt 0:00:10]} 26. Qb3 {[%emt 0:02:15]} c6 {[%emt 0:08:41]} 27. Qe3 {[%emt 0:01:13]} c5 {[%emt 0:02:09]} 28. b4 {[%emt 0:00:29]} Kg8 {[%emt 0:00:55]} 29. Ra7 {[%emt 0:01:28]} g6 {[%emt 0:02:45]} 30. Ra3 {[%emt 0:02:23]} f5 {[%emt 0:07:14]} 31. exf5 {[%emt 0:01:11]} gxf5 {[%emt 0:00:04]} 32. bxc5 {[%emt 0:00:35]} Rb7 {[%emt 0:00:34]} 33. Nxf5 {[%emt 0:00:38]} Qf6 {[%emt 0:06:35]} 34. Nxd6 {[%emt 0:00:47]} Rg7 {[%emt 0:01:22]} 35. Qxe5 {[%emt 0:00:29]} Qh6 {[%emt 0:03:27]} 36. Rg3 {[%emt 0:00:37]} 1-0